Cogmind - Beta 15 @@@ ROGUE MODE // 2025.06.01 @ 16:33:39 // Winter2019/RPGLIKE Player: Jack Result: Self-destructed Performance ------------- Evolutions (3) 1500 Regions Visited (5) 1000 Robots Destroyed (79) 395 Value Destroyed (2502) 2502 Prototype IDs (5) 100 Alien Tech Used (0) 0 Bonus (335) 335 TOTAL SCORE: 5832 Bonus ------- High Alert Combat Kills 219 Follower Combat Kills 116 Cogmind --------- Core Integrity 46/600 Matter 300/300 Energy 160/160 System Corruption 4% Temperature Cool (0) Movement Flying (39) Location -7/Factory Parts ------- > --- POWER (1) -------- Light Nuclear Core > --- PROPULSION (2) --- Flying VTOL Exoskeleton > --- UTILITY (2) ------ Armored Scrap Engine > --- WEAPON (2) ------- Directed Ion Construct/C > --- INVENTORY (5) ---- VTOL Module Peak State ------------ > --- POWER ------------ Ion Engine > --- PROPULSION ------- Improved Flight Unit Improved Flight Unit > --- UTILITY ---------- Armored Scrap Engine > --- WEAPON ----------- Beam Rifle Beam Rifle > --- INVENTORY -------- Protomatter Protomatter Protomatter Spread Laser Spread Laser [Rating: 31] Favorites ----------- Power Ion Engine Engine Ion Engine Power Core Light Nuclear Core Propulsion Improved Flight Unit Hover Unit Backup Propulsion I Flight Unit Improved Flight Unit Utility Armored Scrap Engine Device Armored Scrap Engine Protection Backup Plating III Weapon Beam Rifle Energy Gun Beam Rifle Energy Cannon Constructs Build | -11 -10 -9 -9 -9 -7 ------- Run | Yrd Mat Mat Sto Rec Fac Slots Evolved 3 | . 2 . . 1 . Power . | . . . . . . Propulsion 1 | . 1 . . . . Utility 1 | . . . . 1 . Weapon 1 | . 1 . . . . Parts Attached 14 | . 4 2 3 4 1 Power 2 | . . . 1 . 1 Engine 1 | . . . 1 . . Core 1 | . . . . . 1 Reactor . | . . . . . . Propulsion 4 | . 2 . 2 . . Treads . | . . . . . . Leg . | . . . . . . Wheel . | . . . . . . Hover . | . . . . . . Flight 4 | . 2 . 2 . . Utility 2 | . . . . 2 . Device 1 | . . . . 1 . Storage . | . . . . . . Processor . | . . . . . . Hackware . | . . . . . . Protection 1 | . . . . 1 . Artifact . | . . . . . . Weapon 6 | . 2 2 . 2 . Energy Gun 6 | . 2 2 . 2 . Energy Cannon . | . . . . . . Ballistic Gun . | . . . . . . Ballistic Cannon . | . . . . . . Launcher . | . . . . . . Special Weapon . | . . . . . . Impact Weapon . | . . . . . . Slashing Weapon . | . . . . . . Piercing Weapon . | . . . . . . Special Melee Weapon . | . . . . . . Unidentified Prototypes 2 | . . . 1 1 . Parts Lost . | . . . . . . Power . | . . . . . . Propulsion . | . . . . . . Utility . | . . . . . . Weapon . | . . . . . . Highest Loss Streak . | . . . . . . To Critical Strikes . | . . . . . . Average Backups . | . . . . 1 1 Power . | . . . . . . Propulsion . | . . . . . . Utility . | . . . . . . Weapon . | . . . . 1 . Tool/Special . | . . . . . . Unused Backups 3 | . . . . . 3 Power . | . . . . . . Propulsion 3 | . . . . . 3 Utility . | . . . . . . Weapon . | . . . . . . Tool/Special . | . . . . . . Average Slot Usage (%) 82 | . 86 95 98 88 61 Engine 12 | . 13 16 16 15 5 Core 2 | . . . . . 8 Wheel 3 | . . . . . 9 Flight 20 | . 17 33 32 26 4 Device 6 | . . . . 5 14 Protection 7 | . 13 12 14 9 . Energy Gun 25 | . 29 33 33 30 13 Energy Cannon 1 | . . . . . 6 Peak Build Rating 31 | . 6 8 14 31 31 Average Rating 18 | . 5 7 13 19 29 On Entrance 9 | . . 6 7 14 27 Naked Turns 15 | . 15 . . . . Heaviest Build 13 | . 6 8 13 13 12 Greatest Support 19 | 3 12 8 15 15 19 Greatest Overweight (x) 1 | . 1 . 1 1 1 Average Overweight (x) . | . . . . . . Largest Inventory Capacity 5 | . . . 5 5 5 Average Capacity 3 | . . . 4 5 5 Most Carried 5 | . . . 2 5 5 Average Carried 2 | . . . . 4 2 Final Capacity 5 | . . . 5 5 5 Final Carried 5 | . . . 1 5 1 Scrap Engine Consumption 21 | . . . . 6 15 Constructs Created 2 | . . . . 1 1 Constructs Modified 5 | . . . . . 5 Class Distribution -------------------- 56% | Hacker-Mutant 41% | Hacker-Construct Dominant Class ---------------- Hacker-Mutant | -10/Materials Hacker-Mutant | -9/Materials Hacker-Mutant | -9/Storage Hacker-Mutant | -9/Recycling Hacker-Construct | -7/Factory Resources | -11 -10 -9 -9 -9 -7 ----------- Run | Yrd Mat Mat Sto Rec Fac Matter Collected 373 | 200 40 20 50 53 10 Remotely . | . . . . . . Salvage Created 2051 | . 155 371 783 427 315 Parts 149 | . 7 22 49 44 27 Haulers Intercepted 2 | . . 1 1 . . Recyclers Shooed 2 | . 1 . . . 1 Parts Field Recycled . | . . . . . . Retrieved Matter . | . . . . . . Parts Self-Destructed . | . . . . . . Prevented . | . . . . . . Kills | -11 -10 -9 -9 -9 -7 ------- Run | Yrd Mat Mat Sto Rec Fac Combat Hostiles Destroyed 67 | . 6 16 22 9 14 Guns 55 | . 6 16 22 9 2 Cannons 8 | . . . . . 8 Classes Destroyed 15 | . 2 5 2 4 2 Worker 1 | . . . 1 . . Builder 2 | . . . . 2 . Tunneler 2 | . . . . . 2 Hauler 2 | . . 1 1 . . Recycler 3 | . . 1 . 2 . Watcher 1 | . . 1 . . . Swarmer 16 | . 3 6 . . 7 Grunt 30 | . 3 6 16 . 5 Brawler 1 | . . . 1 . . Duelist 1 | . . 1 . . . Sentry 13 | . . 3 6 4 . Hunter 1 | . . . . . 1 Programmer 3 | . . . . 2 1 Scientist 1 | . . . . 1 . Scrapper 3 | . . . . 3 . Best Kill Streak 7 | . 3 5 7 4 3 Combat Bots Only 7 | . 3 5 7 3 3 Max Kills in Single Turn 3 | . 1 2 3 1 1 Gunslinging 1 | . . . 1 . . Exploded . | . . . . . . Melee . | . . . . . . Uniques/NPCs Destroyed . | . . . . . . Combat | -11 -10 -9 -9 -9 -7 -------- Run | Yrd Mat Mat Sto Rec Fac Hostile Shots Fired 382 | . 20 90 74 51 147 Missed 140 | . 6 42 28 21 43 Hits 242 | . 14 48 46 30 104 Melee 2 | . . 1 1 . . Projectile 240 | . 14 47 45 30 104 Critical Strikes 10 | . . 1 3 3 3 Part Disruptions 1 | . . . . 1 . Damage Taken 3512 | . 157 604 603 546 1602 Core 2694 | . 102 452 451 378 1311 Absorbed by Shields . | . . . . . . Redirected to Core 2046 | . 60 336 326 335 989 Regen/Repaired (Parts) 37 | . . . . . 37 Core Remaining (%) 99 | 100 100 . . 97 . Volleys Fired 293 | . 17 56 53 58 109 Largest 2 | . 2 2 2 2 2 Hottest 130 | . 100 130 130 130 112 Shots Fired 494 | . 34 112 106 107 135 Gun 426 | . 34 112 106 107 67 Cannon 68 | . . . . . 68 Launcher . | . . . . . . Special . | . . . . . . Kinetic . | . . . . . . Thermal 494 | . 34 112 106 107 135 Explosive . | . . . . . . Electromagnetic . | . . . . . . Robot Hit Streak 19 | . 4 14 19 10 11 Robot Miss Streak 11 | . 2 11 7 4 6 Penetration Max . | . . . . . . Secondary Targets 5 | . . 3 1 . 1 Max Gunslinging Chain 1 | . . 1 1 . 1 Shots Hit Robots 325 | . 17 69 96 67 76 Core Hits 274 | . 10 79 120 43 22 Critical Kills . | . . . . . . Critical Parts Destroyed . | . . . . . . Critical Strikes 8 | . 1 . . 2 5 Burn 8 | . 1 . . 2 5 Melee Attacks . | . . . . . . Impact . | . . . . . . Slashing . | . . . . . . Piercing . | . . . . . . Sneak Attacks . | . . . . . . Combat Hostiles . | . . . . . . Follow-up Attacks . | . . . . . . Damage Inflicted 4994 | . 228 842 1379 1059 1486 Guns 4166 | . 228 842 1379 1059 658 Cannons 828 | . . . . . 828 Explosions . | . . . . . . Melee . | . . . . . . Ramming . | . . . . . . Kinetic . | . . . . . . Thermal 4994 | . 228 842 1379 1059 1486 Explosive . | . . . . . . Electromagnetic . | . . . . . . Impact . | . . . . . . Slashing . | . . . . . . Piercing . | . . . . . . Highest Corruption 3 | . . . 1 3 2 Average Corruption 2 | . . . 1 2 1 Corruption Purged . | . . . . . . Corruption Blocked . | . . . . . . Effects 18 | . . . 3 13 2 Message Errors 2 | . . . . 2 . Matter Fused 3 | . . . 1 2 . Heat Flow Errors 4 | . . . 1 3 . Energy Discharges 4 | . . . 1 3 . Data Loss (minor) 4 | . . . . 2 2 Misfires 1 | . . . . 1 . Overload Shots . | . . . . . . Overflow Damage 26 | . . . . . 26 Projectiles 26 | . . . . . 26 Explosions . | . . . . . . Melee . | . . . . . . Knockbacks . | . . . . . . Impact . | . . . . . . Kinetic . | . . . . . . Secondary . | . . . . . . Self-Inflicted Damage . | . . . . . . Shots . | . . . . . . Rammed . | . . . . . . Targets Rammed . | . . . . . . Kicked . | . . . . . . Crushed . | . . . . . . Highest Temperature 242 | . 192 242 166 199 27 Average Temperature 45 | . 85 43 39 34 11 Received Heat Transfer 1078 | . 63 189 300 193 333 Siege Activations . | . . . . . . Martial Activations . | . . . . . . Shielding Activations . | . . . . . . Robots Disrupted . | . . . . . . Combat Hostiles . | . . . . . . Robots Corrupted . | . . . . . . Combat Hostiles . | . . . . . . Parts Fried . | . . . . . . Impact Corruptions . | . . . . . . Robots Melted 4 | . . . . . 4 Combat Hostiles 4 | . . . . . 4 Parts Melted 19 | . 3 1 2 5 8 Heat Transferred 9070 | . 740 1060 1735 2279 3256 Parts Sabotaged . | . . . . . . Parts Stolen . | . . . . . . Parts Stripped . | . . . . . . Power Chain Reactions . | . . . . . . Alert | -11 -10 -9 -9 -9 -7 ------- Run | Yrd Mat Mat Sto Rec Fac Maximum Alert Level 3 | . . 1 3 2 2 Low Security (%) 19 | 100 100 65 14 . . Level 1 53 | . . 34 28 60 80 Level 2 25 | . . . 48 39 19 Level 3 1 | . . . 8 . . Level 4 . | . . . . . . Level 5 . | . . . . . . High Security . | . . . . . . Max Security . | . . . . . . Peak Influence 758 | . 105 385 758 481 451 Initial 441 | . . 33 162 295 441 Average 310 | . 45 145 416 365 351 Influence Increases 2750 | . 174 559 886 411 720 Destroy 0b10 Robot/C 1360 | . 120 320 520 120 280 Destroy 0b10 Robot/NC 85 | . . 15 10 50 10 Destroy Leader 316 | . 30 84 152 . 50 Allied During Kill 64 | . . . 64 . . Successful Hack 47 | . 22 5 20 . . Select Force Hacks 210 | . . . . 210 . Disable Machine 30 | . . . . 30 . Destroy Structure 3 | . 2 . . 1 . Advance Influence 350 | . . . . . 350 Partial Spotted 75 | . . 15 45 . 15 Lose Combat Pursuer 210 | . . 120 75 . 15 Influence Decreases 2385 | . 94 254 513 951 573 Entered New Map 860 | . . 47 223 463 127 Time Decay 1405 | . 94 207 230 428 446 Lost Ally 120 | . . . 60 60 . Squads Dispatched 13 | . 1 3 6 . 3 Investigation 4 | . . 2 2 . . Extermination 2 | . . . . . 2 Reinforcement 6 | . 1 1 3 . 1 Assault . | . . . . . . Garrison 1 | . . . 1 . . Intercept . | . . . . . . Searches Triggered . | . . . . . . Construction Impeded 1 | . . . 1 . . Haulers Reinforced . | . . . . . . Active Scanning Responses . | . . . . . . Cargo Convoy Interrupts . | . . . . . . Stealth | -11 -10 -9 -9 -9 -7 --------- Run | Yrd Mat Mat Sto Rec Fac Distress Signals 6 | . 1 2 2 . 1 Communications Jammed . | . . . . . . Distress Signals . | . . . . . . Times Spotted 111 | . 10 35 36 9 21 Peak Tracking Total 12 | . 3 12 6 3 4 Tactical Retreats 6 | . . 3 2 . 1 Traps | -11 -10 -9 -9 -9 -7 ------- Run | Yrd Mat Mat Sto Rec Fac Traps Triggered 3 | . . 1 . . 2 Indirectly . | . . . . . . Trap Hack Attempts . | . . . . . . Triggered . | . . . . . . Disarmed 1 | . . . 1 . . Reprogrammed . | . . . . . . Reused . | . . . . . . Traps Extracted . | . . . . . . Installed . | . . . . . . Triggered . | . . . . . . Machines | -11 -10 -9 -9 -9 -7 ---------- Run | Yrd Mat Mat Sto Rec Fac Machines Disabled 3 | . . . . 3 . Max in Single Turn 1 | . . . . 1 . Machines Repaired . | . . . . . . Machines Dismantled . | . . . . . . Machines Sabotaged . | . . . . . . Overloaded Fab Kills . | . . . . . . Hacking | -11 -10 -9 -9 -9 -7 --------- Run | Yrd Mat Mat Sto Rec Fac Machines Accessed 22 | . 4 3 6 9 . Terminals 9 | . 3 2 4 . . Fabricators . | . . . . . . Repair Stations 3 | . 1 1 1 . . Recycling Units 7 | . . . . 7 . Scanalyzers . | . . . . . . Garrison Access 1 | . . . 1 . . Total Hacks 49 | . 8 6 12 23 . Successful 38 | . 5 2 8 23 . Failed 11 | . 3 4 4 . . Catastrophic 1 | . . . 1 . . Database Lockouts . | . . . . . . Manual 29 | . 7 3 10 9 . Terminals 18 | . 7 3 8 . . Fabricators . | . . . . . . Repair Stations 5 | . 1 3 1 . . Recycling Units 9 | . . . . 9 . Scanalyzers . | . . . . . . Garrison Access 3 | . . . 3 . . Terminal Hacks 23 | . 2 1 6 14 . Record 12 | . . . . 12 . Open Door 2 | . . . 2 . . Branch Access Points 3 | . 1 1 1 . . Machine Index 1 | . . . 1 . . Terminal Index 1 | . . . 1 . . Disarm Traps 1 | . . . 1 . . Registered Components 1 | . 1 . . . . Release Object 2 | . . . . 2 . Fabricator Hacks . | . . . . . . Repair Station Hacks 3 | . 1 1 1 . . Refit 3 | . 1 1 1 . . Recycling Unit Hacks . | . . . . . . Scanalyzer . | . . . . . . Garrison Access Hacks . | . . . . . . Unauthorized Hacks 10 | . 2 . 1 7 . Terminals 2 | . 2 . . . . Botnet 2 | . 2 . . . . Fabricators . | . . . . . . Repair Stations . | . . . . . . Recycling Units 7 | . . . . 7 . Tunnel 7 | . . . . 7 . Scanalyzers . | . . . . . . Garrison Access 1 | . . . 1 . . Broadcast 1 | . . . 1 . . Data Cores Recovered . | . . . . . . Used . | . . . . . . Hacking Detections 7 | . 2 2 2 1 . Full Trace Events 4 | . 1 1 2 . . Feedback Events 1 | . . . 1 . . Corruption 1 | . . . 1 . . Feedback Blocked . | . . . . . . Robot Schematics Acquired . | . . . . . . Robots Built . | . . . . . . Authchips . | . . . . . . Time . | . . . . . . Total Robot Build Rating . | . . . . . . Part Schematics Acquired . | . . . . . . Parts Built . | . . . . . . Authchips . | . . . . . . Time . | . . . . . . Total Part Build Rating . | . . . . . . Parts Repaired . | . . . . . . Time . | . . . . . . Parts Recycled . | . . . . . . Recycled Matter . | . . . . . . Retrieved Matter . | . . . . . . Retrieved Components . | . . . . . . Parts Scanalyzed . | . . . . . . Part Schematics Acquired . | . . . . . . Parts Damaged . | . . . . . . Bothacking | -11 -10 -9 -9 -9 -7 ------------ Run | Yrd Mat Mat Sto Rec Fac Used RIF Installer . | . . . . . . Robots Hacked . | . . . . . . Non-combat . | . . . . . . Combat . | . . . . . . Robot Hacks Applied . | . . . . . . Relay Couplers Released . | . . . . . . Fabnet Peak Effective % . | . . . . . . Robots Rewired 3 | . . . . 3 . Allies Hacked . | . . . . . . Hacks Repelled . | . . . . . . Allies | -11 -10 -9 -9 -9 -7 -------- Run | Yrd Mat Mat Sto Rec Fac Total Allies 13 | . . . 10 3 . Largest Group 10 | . . . 10 3 . Highest-Rated Group 88 | . . . 88 21 . Highest-Rated Ally 16 | . . . 16 8 . Total Orders . | . . . . . . Ally Attacks 37 | . . . 32 5 . Total Damage 347 | . . . 321 26 . Kills 4 | . . . 4 . . Allies Corrupted . | . . . . . . Allies Melted . | . . . . . . Intel | -11 -10 -9 -9 -9 -7 ------- Run | Yrd Mat Mat Sto Rec Fac Active Infowar (turns) . | . . . . . . Robot Analysis Total . | . . . . . . Derelict Logs Recovered . | . . . . . . Drone Launches . | . . . . . . Drone Recoveries . | . . . . . . Exploration | -11 -10 -9 -9 -9 -7 ------------- Run | Yrd Mat Mat Sto Rec Fac Turns Passed 3402 | 17 294 449 492 1044 1106 Spaces Moved 3105 | 34 400 468 526 1132 545 Core 99 | 34 44 . . 21 . Treads . | . . . . . . Legs . | . . . . . . Wheels 421 | . . . . . 421 Hover 86 | . 86 . . . . Flight 2499 | . 270 468 526 1111 124 Fastest Speed 37 | 50 37 37 37 37 39 Average Speed 46 | 50 49 37 37 49 55 Slowest Speed 120 | 50 120 37 120 113 113 Overloaded Moves . | . . . . . . Propulsion Burnouts . | . . . . . . Robots Hopped 30 | . 6 8 9 7 . Potential Cave-ins . | . . . . . . Cave-ins Triggered . | . . . . . . Exploration Rate (%) 49 | 4 59 35 89 99 10 Regions Visited 5 Branch Regions 2 Pre-discovered Areas 7 | . . . . 7 . Known Exits Taken 2 | . . 1 1 . . Unknown Exits Taken 3 | 1 1 . . 1 . Scrap Searched . | . . . . . . Spaces Dug . | . . . . . . Terrain Destroyed . | . . . . . . Melee . | . . . . . . Projectile . | . . . . . . AOE . | . . . . . . Terrain Rammed . | . . . . . . Walls Destroyed . | . . . . . . Machines Disabled . | . . . . . . Actions | -11 -10 -9 -9 -9 -7 --------- Run | Yrd Mat Mat Sto Rec Fac Total 4536 | 33 455 624 708 1499 1217 Wait 969 | . 31 86 97 250 505 Move 3040 | 33 387 451 507 1117 545 Hop 30 | . 6 8 9 7 . Pick Up 16 | . . . 6 5 5 Fast Attach 10 | . 4 1 3 2 . Attach 1 | . . . . 1 . Detach 2 | . . . . 2 . Swap 4 | . . 1 1 1 1 Drop 32 | . 2 4 9 5 12 Fire 293 | . 17 56 53 58 109 Melee . | . . . . . . Ram . | . . . . . . Kick . | . . . . . . Crush . | . . . . . . Escape Stasis . | . . . . . . Rewire 12 | . . . . 12 . Trap . | . . . . . . Miscellaneous 127 | . 8 17 23 39 40 Route ------- -11/Scrapyard -10/Materials (discovered 3 exits: *Mat x2 / *Min) -9/Materials (discovered 2 exits: *Min / *Sto) -9/Storage (discovered 2 exits: [*Mat] / *Rec) -9/Recycling -7/Factory History --------- Turn | Location | Event 4 | -11/Scrapyard | Discovered new exit (range 15) 18 | -11/Scrapyard | Entered Materials 30 | -10/Materials | Upgraded with Propulsion slot (x1) 30 | -10/Materials | Upgraded with Weapon slot (x1) 83 | -10/Materials | Discovered new exit (range 7) 159 | -10/Materials | Discovered new exit (range 12) 257 | -10/Materials | Discovered new exit (range 16) 297 | -10/Materials | Identified exit to Mines 312 | -10/Materials | Entered another Materials area 314 | -9/Materials | Reached level 2 347 | -9/Materials | Build established: Hacker-Mutant 462 | -9/Materials | Reached level 3 532 | -9/Materials | Identified exit to Mines 532 | -9/Materials | Identified exit to Storage 761 | -9/Materials | Entered Storage 763 | -9/Storage | Reached level 4 780 | -9/Storage | Identified exit to Recycling 839 | -9/Storage | Assisted by bots powering up and referring to "LRC-V3" 860 | -9/Storage | Used back door to open Recycling access 881 | -9/Storage | Reached level 5 931 | -9/Storage | Lost 6 allies 977 | -9/Storage | Discovered new exit (range 16) 1034 | -9/Storage | Lost 3 allies 1068 | -9/Storage | Reached level 6 1191 | -9/Storage | Garrison activated, responded to threat 1211 | -9/Storage | Reached level 7 1238 | -9/Storage | Destroyed 7 combat bots 1253 | -9/Storage | Entered Recycling 1298 | -9/Recycling | Reached level 8 1342 | -9/Recycling | Scanned before Scraplab entrance 1447 | -9/Recycling | Discovered new exit (range 16) 1841 | -9/Recycling | Entered Scraplab 1844 | -9/Recycling | Angered Scraplab inhabitants 1864 | -9/Recycling | Upgraded with Utility slot (x1) 1865 | -9/Recycling | Found Prototype Device 1865 | -9/Recycling | Identified Scrap Engine 1879 | -9/Recycling | Lost 3 allies 2288 | -9/Recycling | Build established: Hacker-Construct 2297 | -9/Recycling | Entered Factory 2299 | -7/Factory | Reached level 9 2697 | -7/Factory | Reached level 10 3130 | -7/Factory | Core integrity fell below 50% 3401 | -7/Factory | Core integrity fell below 20% 3403 | -7/Factory | Self-destructed Last Messages --------------- U-05 Engineer works on Assembly Bed. K-01 Serf collects debris. U-05 Engineer works on Assembly Bed. K-01 Serf destroyed. U-05 Engineer works on Assembly Bed. S-27 Virus suffers critical hit (Burn). S-27 Virus destroyed. R-06 Scavenger collects VTOL Module. S-27 Virus destroyed. Lgt. Nuclear Core melted. S-27 Virus destroyed. Used Protomatter to restore core integrity (+48, depleted) System corrupted: Component data lost. ALERT: Potential suspicious activity detected, Programmers report to Factory Zone 9A. Scrap Engine modifies Wheeled Exoskeleton: Time/Move -8 Renamed Flying VTOL Exoskeleton. Acquired VTOL Module. Destroyed Gravmag System. Map ----- +----------------------------------------------------+ | ?????????????????????????????????????????????????? | | ?????????????????????????????????????????????????? | | ?????????????????????????????????????????????????? | | ?????????????????????????????????????????????????? | | ?????????????????????????????????????????????????? | | ?????????????????????????????????????????????????? | | ?????????????????????????????????????????????????? | | ?????????????????????????????????????????????????? | | ?????????????????????????????????????????????????? | | ?????????????????????????????????????????????????? | | ?????????????????????????????????????????????????? | | ?????????????????????????????????????????????????? | | ?????????????????????????????????????????????????? | | ?????????????????????????????????????????????????? | | ?????????????????????????????????????????????????? | | ?????????????????????????????????????????????????? | | ???????????????????########?########?????????????? | | ???????????????????# !#? #?????????????? | | ???????????????????# #?#]/ "" #?????????????? | | ???????????????????# """#?#] """#?????????????? | | ???????????????????# """#?# R"#?????????????? | | ???????????????????# = """#?# """#?????????????? | | ???????????????????# #?? ???????????????? | | ???????????????????####+###?###+###??????????????? | | ????????????????????# !#?# #??????????????? | | ????????????????????# @### ##?????????????? | | ????????????????????# p " +?????????????? | | ????????????????????# ### ##?????????????? | | ????????????????????# #?# #??????????????? | | ????????????????????## r##?### ###??????????????? | | ?????????????????????# #????#*#??????###+####### | | ?????????????????????# #????#%######## | | ?????????????????????# #????# %[ | | ?????????????????????# #????# ######## | | ????????????????????? #####/######## ^ ^ | | ???????????????????? # # | | ???????????????????? p" # # | | ??????????????????? # """" =% # """ | | ??????????????????### # """" # """ | | ????????????????????### ### """" " # ^ """ | | ??????????????????????? ??# """" " / """ | | ??????????????????????????/ """" " # """ | | ?????????????????????????#??"""" # ! """ | | ??????????????????????????? ### """ | | ??????????????????????????# #?# | | ??????????????????????????# #?#% | | ??????????????????????????# #?#%####"" | | ??????????????????????????##############?#%#????"T | | ?????????????????????????????????????????# #?????" | | ????????????????????????????????????????##+####### | +----------------------------------------------------+ Best States ------------- Heat Dissipation 49 Energy Generation 14 Energy Capacity 250 Matter Stores 300 Matter Capacity 300 Sight Range 16 Terrain Scan Density 10 Armor Coverage 80 Evasion (%) 62 Offensive Hacking 20 Item Schematics ----------------- None Robot Schematics ------------------ None Fabricated ------------ Nothing Repaired ---------- Nothing Alien Tech Used ----------------- None Achievements -------------- None Challenges ------------ None RPGLIKE | -11 -10 -9 -9 -9 -7 --------- Run | Yrd Mat Mat Sto Rec Fac Levels Raised 9 | . . 2 4 1 2 XP Earned 17680 | 3000 790 3500 4819 2408 3163 XP Spent 7670 | . 3000 320 3850 500 . Upgrades 17 | . 6 4 6 1 . Propulsion Slot 1 | . 1 . . . . Utility Slot 1 | . . . . 1 . Weapon Slot 1 | . 1 . . . . Heat Dissipation 4 | . . 4 . . . Mass Support 1 | . . . 1 . . Inventory Capacity 5 | . . . 5 . . Hack Attack % 4 | . 4 . . . . Protomatter Created 1105 | . 51 169 190 460 235 Integrity Restored 2627 | . 142 348 480 789 868 Core 2140 | . 102 314 390 561 773 Parts 487 | . 40 34 90 228 95 Protomatter Decayed 212 | . 1 40 . 158 13 Game ------ Seed WardroneReflectiveNanovents Manual? 0 Play Time 00:33:13 Cumulative 233.1 hours Start 2025.06.01 @ 15:55:07 End 2025.06.01 @ 16:33:39 Sessions 1 Manual Loads 0 Difficulty Rogue Special Mode Winter2019/RPGLIKE Game No. 233 Rogue 44 Adventurer 177 Explorer 12 Win Type - Total 63 Types 18/1/16/2/12/0/4/5/0/5 Lore% 52 Gallery% 51 Achievement% 69 Wizard Run 0 Options --------- Layout 0 ASCII 0 Keyboard 0 Movement Mouse Keybinds 0 Fullscreen 2 Font 12/Smallcaps Map View 83x54 Zoom Use 0% Tactical HUD 0 Map Filters NONE Filters NONE Steam X RUN: e1d117d1-5fe0-4ab4-9319-112f1edd6983